Workbook

Sheet Fluxo de Caixa
B1: Fluxo de Caixa
B2: (PREENCHER APENAS AS CÉLULAS A AMARELO)
B4: RECEITAS | C4: 2021 | D4: =C4+1 -> 2022 | E4: =D4+1 -> 2023 | F4: =E4+1 -> 2024
B5: Produto/Serviço 1
B6: Preço | C6: 100 € | D6: 100 € | E6: 100 € | F6: 100 €
B7: Quantidade | C7: 1000 | D7: 2000 | E7: 2500 | F7: 3000
B8: Sub-total | C8: =C6*C7 -> 100,000 € | D8: =D6*D7 -> 200,000 € | E8: =E6*E7 -> 250,000 € | F8: =F6*F7 -> 300,000 €
B9: Produto/Serviço 2
B10: Preço | C10: 1,000 € | D10: 1,000 € | E10: 1,000 € | F10: 1,000 €
B11: Quantidade | C11: 50 | D11: 100 | E11: 200 | F11: 350
B12: Sub-total | C12: =C10*C11 -> 50,000 € | D12: =D10*D11 -> 100,000 € | E12: =E10*E11 -> 200,000 € | F12: =F10*F11 -> 350,000 €
B13: TOTAL RECEITAS | C13: =C12+C8 -> 150,000 € | D13: =D12+D8 -> 300,000 € | E13: 450,000 € | F13: 650,000 €
B15: CUSTO DAS VENDAS (CMVC) | C15: 2021 | D15: =C15+1 -> 2022 | E15: =D15+1 -> 2023 | F15: =E15+1 -> 2024
B16: =B5 -> Produto/Serviço 1
B17: Custo das Vendas (% das receitas totais) | C17: 15% | D17: 15% | E17: 15% | F17: 15%
B18: Custos Distribuição /Comissões ( % das receitas totais) | C18: 40% | D18: 40% | E18: 40% | F18: 40%
B19: Royalties (% das receitas para licenciamento patentes) | C19: 5% | D19: 5% | E19: 5% | F19: 5%
B20: Sub-Total | C20: =(C8*C17)+(C8*C18)+(C8*C19) -> 60,000 € | D20: =(D8*D17)+(D8*D18)+(D8*D19) -> 120,000 € | E20: =(E8*E17)+(E8*E18)+(E8*E19) -> 150,000 € | F20: =(F8*F17)+(F8*F18)+(F8*F19) -> 180,000 €
B21: =B9 -> Produto/Serviço 2
B22: Custo das Vendas (% das receitas totais) | C22: 15% | D22: 15% | E22: 15% | F22: 15%
B23: Custos Distribuição /Comissões ( % das receitas totais) | C23: 40% | D23: 40% | E23: 40% | F23: 40%
B24: Royalties (% das receitas para licenciamento patentes) | C24: 5% | D24: 5% | E24: 5% | F24: 5%
B25: Sub-Total | C25: =(C24*C12)+(C23*C12)+(C22*C12) -> 30,000 € | D25: =(D24*D12)+(D23*D12)+(D22*D12) -> 60,000 € | E25: =(E24*E12)+(E23*E12)+(E22*E12) -> 120,000 € | F25: =(F24*F12)+(F23*F12)+(F22*F12) -> 210,000 €
B26: TOTAL CUSTO DAS VENDAS | C26: =C25+C20 -> 90,000 € | D26: =D25+D20 -> 180,000 € | E26: 270,000 € | F26: 390,000 €
B28: CUSTO SERVIÇOS EXTERNOS | C28: 2021 | D28: =C28+1 -> 2022 | E28: =D28+1 -> 2023 | F28: =E28+1 -> 2024
B29: Aluguer Escritório (sugestão: 500€/mês) | C29: 6,000 € | D29: 6,000 € | E29: 6,000 € | F29: 6,000 €
B30: Aluguer Laboratório se necessário (sugestão: 1000 euros/mês) | C30: 12,000 € | D30: 12,000 € | E30: 12,000 € | F30: 12,000 €
B31: Electricidade, Água e Outro (sugestão: 100€/mês) | C31: 1,200 € | D31: 1,200 € | E31: 1,200 € | F31: 1,200 €
B32: Contabilista (sugestão: 500€/mês) | C32: 6,000 € | D32: 6,000 € | E32: 6,000 € | F32: 6,000 €
B33: Telecomunicações (sugestão: 100€/mês) | C33: 1,200 € | D33: 1,200 € | E33: 1,200 € | F33: 1,200 €
B34: Marketing (sugestão: 500€/mês) | C34: 6,000 € | D34: 6,000 € | E34: 6,000 € | F34: 6,000 €
B35: Outros.. | C35: 0 € | D35: 0 € | E35: 0 € | F35: 0 €
B36: TOTAL CUSTO SERVIÇOS EXTERNOS | C36: =SUM(C29:C35) -> 32,400 € | D36: =SUM(D29:D35) -> 32,400 € | E36: 32,400 € | F36: 32,400 €
B38: CUSTO PESSOAL | C38: 2021 | D38: =C38+1 -> 2022 | E38: =D38+1 -> 2023 | F38: =E38+1 -> 2024
B39: CEO - Gestor | C39: 1 | D39: 1 | E39: 1 | F39: 1
B40: Salário Mensal (sugestão: 1.200€/mês) | C40: 1,200 € | D40: 1,200 € | E40: 1,200 € | F40: 1,200 €
B41: Total Custo Empresa | C41: =C39*(C40*12*1.8) -> 25,920 € | D41: =D39*(D40*12*1.8) -> 25,920 € | E41: 25,920 € | F41: 25,920 €
B42: Marketing and Sales Manager | C42: 1 | D42: 1 | E42: 1 | F42: 1
B43: Salário Mensal (sugestão: 1.500€/mês) | C43: 1,500 € | D43: 1,500 € | E43: 1,500 € | F43: 1,500 €
B44: Total Custo Empresa | C44: =C42*(C43*12*1.8) -> 32,400 € | D44: =D42*(D43*12*1.8) -> 32,400 € | E44: 32,400 € | F44: 32,400 €
B45: Creative Director | C45: 0 | D45: 0 | E45: 1 | F45: 1
B46: Salário Mensal (sugestão: 1.200€/mês) | C46: 1,200 € | D46: 1,200 € | E46: 1,200 € | F46: 1,200 €
B47: Total Custo Empresa | C47: =C45*(C46*12*1.8) -> 0 € | D47: =D45*(D46*12*1.8) -> 0 € | E47: 25,920 € | F47: 25,920 €
B48: Accountant | C48: 0 | D48: 1 | E48: 1 | F48: 1
B49: Salário Mensal (sugestão: 1.000€/mês) | C49: 1,000 € | D49: 1,000 € | E49: 1,000 € | F49: 1,000 €
B50: Total Custo Empresa | C50: =C48*(C49*12*1.8) -> 0 € | D50: =D48*(D49*12*1.8) -> 21,600 € | E50: 21,600 € | F50: 21,600 €
B51: Technology and Product Development | C51: 0 | D51: 0 | E51: 1 | F51: 1
B52: Salário Mensal (sugestão: 1.100€/mês) | C52: 1,100 € | D52: 1,100 € | E52: 1,100 € | F52: 1,100 €
B53: Total Custo Empresa | C53: =C51*(C52*12*1.8) -> 0 € | D53: =D51*(D52*12*1.8) -> 0 € | E53: =E51*(E52*12*1.8) -> 23,760 € | F53: =F51*(F52*12*1.8) -> 23,760 €
B54: TOTAL CUSTO PESSOAL | C54: =C41+C44+C47+C50+C53 -> 58,320 € | D54: =D41+D44+D47+D50+D53 -> 79,920 € | E54: =E41+E44+E47+E50+E53 -> 129,600 € | F54: =F41+F44+F47+F50+F53 -> 129,600 €
B56: INVESTIMENTO | C56: 2021 | D56: =C56+1 -> 2022 | E56: =D56+1 -> 2023 | F56: =E56+1 -> 2024
B57: Activos Fixos (Maquinas / Computadores / Etç) | C57: 5,000 € | D57: 0 € | E57: 0 € | F57: 0 €
B58: Desenvolvimento (investigação, plataformas, produtos) | C58: 35,000 € | D58: 0 € | E58: 0 € | F58: 0 €
B59: TOTAL INVESTIMENTOS | C59: =SUM(C57+C58) -> 40,000 € | D59: =SUM(D57+D58) -> 0 € | E59: 0 € | F59: 0 €
B61: FUNDO DE MANEIO | C61: 2021 | D61: =C61+1 -> 2022 | E61: =D61+1 -> 2023 | F61: =E61+1 -> 2024
B62: Necessidades de Fundo | C62: =0.02*C13 -> 3,000 € | D62: =0.02*D13 -> 6,000 € | E62: =0.02*E13 -> 9,000 € | F62: =0.02*F13 -> 13,000 €
C65: 2021 | D65: =C65+1 -> 2022 | E65: =D65+1 -> 2023 | F65: =E65+1 -> 2024
B66: RECEITAS TOTAIS | C66: =C13 -> 150,000 € | D66: =D13 -> 300,000 € | E66: 450,000 € | F66: 650,000 €
B67: CUSTOS TOTAIS | C67: =C26+C36+C54 -> 180,720 € | D67: =D59+D54+D36+D26 -> 292,320 € | E67: =E59+E54+E36+E26 -> 432,000 € | F67: =F59+F54+F36+F26 -> 552,000 €
B68: FLUXO DE CAIXA OPERACIONAL | C68: =C66-C67 -> -30,720 € | D68: =D66-D67 -> 7,680 € | E68: 18,000 € | F68: 98,000 €
B69: INVESTIMENTO E FUNDO DE MANEIO | C69: =C59+C62 -> 43,000 € | D69: =D59+D62 -> 6,000 € | E69: 9,000 € | F69: 13,000 €
B70: FLUXO DE CAIXA | C70: =C68-C69 -> -73,720 € | D70: =D68-D69 -> 1,680 € | E70: 9,000 € | F70: 85,000 €
B71: FLUXO DE CAIXA ACUMULADO | C71: =C70 -> -73,720 € | D71: =C71+D70 -> -72,040 € | E71: =D71+E70 -> -63,040 € | F71: =E71+F70 -> 21,960 €
